bitfinex-derivatives/quotes_SOLF0:USTF0_20250924
["timestamp","ask_amount","ask_price","bid_price","bid_amount"]
[1758740401051,7.85,214.01,213.97,4.2038]
[1758740401052,3.35682735,213.98,213.97,12.0238]
[1758740401464,5.20240222,214.06,213.99,4.2034]
[1758740401764,16.41640648,214.04,213.96,1.0]
[1758740401958,7.85,214.0,213.96,1.0]
[1758740402154,11.21231559,213.99,213.96,8.82]
[1758740402358,3.36231559,213.98,213.97,7.82]
[1758740404964,11.21231559,213.98,213.96,5.204]
[1758740405167,3.36231559,213.97,213.96,13.024]
[1758740405365,7.85,214.01,213.97,4.2038]
[1758740405666,3.36412688,214.0,213.98,7.82]
[1758740405862,3.36412688,213.99,213.98,7.82]
[1758740406162,3.36412688,213.99,213.97,4.2038]
[1758740406373,3.36412688,213.98,213.97,7.82]
[1758740406868,5.20240222,214.04,213.97,7.82]
[1758740407063,7.85,214.04,213.97,7.82]
[1758740407574,7.85,214.04,213.98,4.2036]
[1758740407872,7.85,214.04,213.97,7.82]
[1758740408077,16.41640648,214.08,213.97,7.82]
[1758740408260,16.41640648,214.08,213.99,7.82]
[1758740408670,7.85,214.06,213.99,7.82]
[1758740409068,7.85,214.06,213.99,12.0234]
[1758740412777,7.85,214.06,214.0,4.2032]
[1758740415475,13.05240222,214.06,214.0,4.2032]
[1758740417683,7.85,214.05,214.01,12.0231]
[1758740418181,7.85,214.05,214.01,4.2031]
[1758740418370,7.85,214.05,214.02,7.82]
[1758740418571,7.85,214.05,213.98,7.82]
[1758740418775,13.05240222,214.08,213.98,7.82]
[1758740418982,3.33038371,214.07,213.98,7.82]
[1758740419282,3.33038371,214.06,213.98,7.82]
[1758740419482,3.33038371,214.05,213.98,7.82]
[1758740419684,3.33038371,214.04,213.98,7.82]
[1758740419880,3.33038371,214.03,213.98,7.82]
[1758740420080,3.33038371,214.02,213.98,7.82]
[1758740420281,3.33038371,214.01,213.98,7.82]
[1758740420482,3.33038371,214.0,213.98,7.82]
[1758740420683,13.05240222,214.08,214.01,12.023]
[1758740420879,3.32904699,214.07,214.01,12.023]
[1758740421079,11.17904699,214.06,214.01,4.203]
[1758740421274,3.32904699,214.05,214.03,7.82]
[1758740421480,3.32904699,214.04,214.03,7.82]
[1758740424085,3.32904699,214.04,214.02,7.47]
[1758740424285,3.32904699,214.03,214.02,7.47]
[1758740425488,11.14904699,214.03,214.01,4.2031]
[1758740425686,3.32904699,214.02,214.01,4.2031]
[1758740427391,3.32904699,214.02,214.01,11.6731]
[1758740428293,3.32904699,214.02,214.01,4.2031]
[1758740428590,7.82,214.01,213.99,4.2035]
[1758740428785,3.32904699,214.0,213.99,4.2035]
[1758740428985,11.14904699,214.0,213.97,4.2039]
[1758740429192,3.32904699,213.99,213.96,1.0]
[1758740429389,7.82,213.97,213.96,1.0]
[1758740429589,11.14904699,213.97,213.96,1.0]
[1758740435496,13.30050099,213.97,213.96,1.0]
[1758740436596,11.14904699,213.97,213.96,1.0]
[1758740437387,3.32904699,213.97,213.96,1.0]
[1758740437592,3.32904699,213.97,213.96,12.674]
[1758740437796,3.32904699,213.97,213.96,5.204]
[1758740437989,3.32904699,213.97,213.96,12.674]
[1758740439002,11.14904699,213.97,213.96,5.204]
[1758740439498,11.14904699,213.97,213.96,1.0]
[1758740442901,13.30050099,213.97,213.96,1.0]
[1758740443500,13.30050099,213.97,213.96,0.17943768]
[1758740443709,13.76050099,213.97,213.9,4.2053]
[1758740443900,7.82,213.94,213.9,4.2053]
[1758740444097,3.32904699,213.93,213.9,4.2053]
[1758740444294,11.14904699,213.92,213.9,4.2053]
[1758740444606,7.82,213.92,213.9,4.2053]
[1758740445609,2.151454,213.95,213.9,4.2053]
[1758740445801,7.82,213.93,213.9,4.2053]
[1758740446002,7.82,213.91,213.9,4.2053]
[1758740446508,7.82,213.91,213.88,11.6756]
[1758740450310,7.82,213.91,213.89,7.47]
[1758740452206,2.151454,213.95,213.88,4.2056]
[1758740452407,11.12905058,213.94,213.84,7.47]
[1758740452608,7.82,213.92,213.84,7.47]
[1758740452804,7.82,213.9,213.84,7.47]
[1758740453404,3.30852715,213.89,213.84,7.47]
[1758740453611,7.82,213.92,213.84,7.47]
[1758740453810,3.30966408,213.91,213.84,7.47]
[1758740454010,10.50966408,213.9,213.85,4.2062]
[1758740454210,7.2,213.88,213.85,11.8462]
[1758740455609,7.2,213.88,213.85,4.2062]
[1758740455806,7.2,213.88,213.86,7.64]
[1758740456227,7.2,213.88,213.86,11.846]
[1758740463022,7.2,213.88,213.86,4.206]
[1758740463221,7.2,213.88,213.86,11.986]
[1758740464620,2.151454,213.93,213.88,11.9857]
[1758740464818,7.64,213.91,213.88,7.78]
[1758740465018,9.791454,213.94,213.86,7.78]
[1758740465220,3.3087775,213.93,213.86,7.78]
[1758740465522,3.3087775,213.92,213.86,7.78]
[1758740465721,9.791454,213.94,213.86,7.78]
[1758740465921,3.30929017,213.93,213.88,7.78]
[1758740466224,7.64,213.95,213.88,7.78]
[1758740466421,3.31024904,213.94,213.88,7.78]
[1758740466624,2.151454,213.97,213.92,4.2048]
[1758740466625,7.64,213.97,213.92,4.2048]
[1758740466827,10.95043317,213.96,213.93,7.78]
[1758740467017,10.95043317,213.95,213.93,7.78]
[1758740467222,3.31043317,213.94,213.93,7.78]
[1758740467422,3.31043317,213.94,213.89,2.151454]
[1758740467423,10.95043317,213.97,213.91,2.151454]
[1758740467630,3.31043317,213.96,213.95,7.78]
[1758740467926,3.31043317,213.97,213.95,7.78]
[1758740468228,3.31043317,213.96,213.95,7.78]
[1758740468430,3.31043317,213.99,213.95,7.78]
[1758740468721,10.95043317,213.98,213.95,7.78]
[1758740468930,10.95043317,213.98,213.95,11.9842]
[1758740468931,3.31043317,213.97,213.95,11.9842]
[1758740469127,3.31043317,213.97,213.96,7.78]
[1758740469331,7.64,214.01,213.95,2.151454]
[1758740469531,3.31433655,214.0,213.95,2.151454]
[1758740469734,3.31433655,213.99,213.95,2.151454]
[1758740469930,3.31433655,213.98,213.96,7.78]
[1758740470231,7.64,214.01,213.97,11.9838]
[1758740470432,3.31555576,214.0,213.97,11.9838]
[1758740470628,3.31555576,213.99,213.97,11.9838]
[1758740470829,3.31555576,213.98,213.97,11.9838]
[1758740471038,3.31555576,214.0,213.97,11.9838]
[1758740471529,3.31555576,214.0,213.98,11.9836]
[1758740473335,3.31555576,213.99,213.98,11.9836]
[1758740473535,3.31555576,214.0,213.98,11.9836]
[1758740473735,3.31555576,213.99,213.98,11.9836]
[1758740474132,3.31555576,214.0,213.98,11.9836]
[1758740474338,3.31555576,213.99,213.98,7.78]
[1758740474635,3.31555576,214.01,213.98,7.78]
[1758740474835,3.31555576,214.0,213.98,7.78]
[1758740475036,3.31555576,213.99,213.98,7.78]
[1758740475234,7.64,214.0,213.98,7.78]
[1758740475429,3.31555576,213.99,213.98,7.78]
[1758740476740,3.31555576,213.99,213.93,9.931454]
[1758740476941,3.31555576,213.99,213.95,4.2043]
[1758740477444,7.64,213.97,213.95,4.2043]
[1758740477636,3.31555576,213.96,213.95,4.2043]
[1758740479542,3.31555576,213.96,213.95,11.9843]
[1758740480140,3.31555576,213.97,213.95,4.2043]
[1758740480334,7.64,214.02,213.95,4.2043]
[1758740480537,3.32184614,214.01,213.95,4.2043]
[1758740480738,10.96184614,214.0,213.96,7.78]
[1758740480937,3.32184614,213.99,213.97,4.204]
[1758740481138,3.32184614,213.98,213.97,7.78]
[1758740481337,3.32184614,213.98,213.94,2.151454]
[1758740481542,3.32184614,213.97,213.95,11.9843]
[1758740481737,2.151454,214.03,213.95,11.9843]
[1758740481937,7.64,214.01,213.95,11.9843]
[1758740482140,7.64,213.99,213.93,4.2047]
[1758740482338,10.96163836,213.98,213.93,4.2047]
[1758740482537,10.96163836,213.97,213.94,7.78]
[1758740482736,3.32163836,213.96,213.93,4.2047]
[1758740482938,7.64,214.0,213.95,7.78]
[1758740483140,7.64,213.98,213.95,7.78]
[1758740483341,3.32159409,213.97,213.95,7.78]
[1758740484147,3.32159409,213.97,213.96,7.59]
[1758740484447,3.32159409,214.0,213.94,2.151454]
[1758740484647,3.32159409,213.99,213.95,7.59]
[1758740484837,3.32159409,213.98,213.95,7.59]
[1758740485042,3.32159409,213.97,213.94,2.151454]
[1758740485238,2.151454,214.03,213.97,4.2038]
[1758740485543,7.93,214.01,213.97,4.2038]
[1758740485738,3.32163421,214.0,213.97,4.2038]
[1758740485947,3.32163421,213.99,213.97,4.2038]
[1758740486140,3.32163421,213.98,213.97,4.2038]
[1758740487042,3.32163421,213.98,213.97,11.7938]
[1758740492248,7.93,214.03,213.97,11.7938]
[1758740492550,7.93,214.01,213.97,11.7938]
[1758740492754,11.24933535,214.0,213.97,11.7938]
[1758740492950,3.31933535,213.99,213.97,11.7938]
[1758740493549,3.31933535,213.99,213.97,4.2038]
[1758740493854,3.31933535,213.99,213.98,7.59]
[1758740495150,5.20240222,214.07,213.93,3.36289609]
[1758740495356,7.93,214.04,213.93,3.36289609]
[1758740495556,7.93,214.02,213.93,3.36289609]
[1758740495750,3.31881036,214.01,213.94,7.59]
[1758740495950,3.31881036,214.0,213.94,7.59]
[1758740496257,3.31881036,213.99,213.97,4.2038]
[1758740496460,7.93,214.04,213.97,4.2038]
[1758740496658,3.31849915,214.03,213.97,4.2038]
[1758740496957,7.93,214.01,213.97,11.7938]
[1758740497153,11.24849915,214.0,213.97,11.7938]
[1758740497360,3.31849915,213.99,213.97,11.7938]
[1758740499448,3.31849915,213.99,213.98,7.59]
[1758740500662,7.56539609,214.05,213.98,7.59]
[1758740500663,11.2496971,214.02,213.99,4.2035]
[1758740500961,3.3196971,214.01,213.99,11.7935]
[1758740501161,3.3196971,214.0,213.99,11.7935]
[1758740502758,3.3196971,214.0,213.97,4.2038]
[1758740502962,11.2496971,213.99,213.97,4.2038]
[1758740503162,3.3196971,213.98,213.97,4.2038]
[1758740504058,3.3196971,213.98,213.95,11.7943]
[1758740504260,11.2496971,213.97,213.95,4.2043]
[1758740504457,3.3196971,213.96,213.95,4.2043]
[1758740504858,3.3196971,213.96,213.95,11.7943]
[1758740505662,7.93,214.0,213.96,4.2041]
[1758740505863,11.2496971,213.99,213.96,11.7941]
[1758740506063,3.3196971,213.98,213.96,11.7941]
[1758740506256,3.3196971,213.97,213.96,11.7941]
[1758740506653,3.3196971,213.98,213.96,11.7941]
[1758740506855,3.3196971,213.97,213.96,11.7941]
[1758740507061,3.3196971,213.98,213.96,11.7941]
[1758740507265,3.3196971,213.97,213.96,11.7941]
[1758740507870,7.93,213.96,213.94,4.2045]
[1758740508064,3.3196971,213.95,213.92,7.59]
[1758740508261,11.2496971,213.94,213.88,7.59]
[1758740508460,11.2496971,213.94,213.84,168.39009609]
[1758740508461,7.93,213.92,213.85,65.4322]
[1758740508662,7.93,213.92,213.86,7.59]
[1758740508965,3.32127663,213.91,213.88,4.2057]
[1758740509170,3.32127663,213.9,213.89,7.59]
[1758740509560,3.32127663,213.9,213.86,11.7961]
[1758740509767,3.32287673,213.89,213.86,11.7961]
[1758740509969,3.32287673,213.88,213.87,7.59]
[1758740510168,3.32287673,213.89,213.87,11.7958]
[1758740510466,3.32287673,213.88,213.87,11.7958]
[1758740510966,7.93,213.94,213.91,7.59]
[1758740512076,13.13240222,213.97,213.88,7.59]
[1758740512378,7.93,213.97,213.88,7.59]
[1758740513176,7.93,213.97,213.93,4.2046]
[1758740513475,67.84529831,213.99,213.93,4.2046]
[1758740514171,7.73,213.98,213.93,4.2046]
[1758740514372,67.84529831,213.99,213.93,4.2046]
[1758740514878,7.73,213.98,213.91,7.59]
[1758740516377,7.73,213.98,213.91,11.795]
[1758740517179,7.73,213.98,213.92,4.2048]
[1758740520171,62.64289609,213.99,213.93,4.2046]
[1758740520371,7.38,213.98,213.93,4.2046]
[1758740520571,62.64289609,213.99,213.93,4.2046]
[1758740520976,7.38,213.98,213.93,4.2046]
[1758740521275,3.36289609,213.99,213.94,7.79]
[1758740521475,5.20240222,214.0,213.87,65.4248]
[1758740521476,12.58240222,214.02,213.91,7.79]
[1758740521674,7.38,214.02,213.91,7.79]
[1758740521868,12.58240222,214.02,213.96,7.79]
[1758740522074,7.38,214.02,213.96,7.79]
[1758740522773,7.38,214.0,213.93,11.9947]
[1758740522975,7.38,213.98,213.93,4.2047]
[1758740523278,7.38,213.96,213.93,4.2047]
[1758740523579,10.68418959,213.95,213.93,4.2047]
[1758740523771,3.30418959,213.94,213.93,4.2047]
[1758740524473,3.30418959,213.94,213.93,11.9947]
[1758740524677,3.30418959,213.99,213.93,4.2047]
[1758740524877,7.38,213.97,213.93,11.9947]
[1758740525077,10.68418959,213.96,213.93,11.9947]
[1758740525277,3.30418959,213.95,213.93,11.9947]
[1758740525584,3.30418959,213.94,213.93,11.9947]
[1758740525971,10.68418959,213.96,213.93,7.79]
[1758740526182,7.38,213.94,213.86,7.79]
[1758740526483,3.30418959,213.93,213.86,7.79]
[1758740527082,3.30418959,213.93,213.88,4.2056]
[1758740527382,3.30418959,213.93,213.89,7.79]
[1758740527576,3.30418959,213.93,213.88,4.2056]
[1758740527788,3.30418959,213.93,213.9,7.79]
[1758740527978,3.30418959,213.93,213.86,7.79]
[1758740528179,10.74289609,213.97,213.86,7.79]
[1758740528180,3.30418959,213.92,213.86,7.79]
[1758740528476,3.30418959,213.91,213.86,7.79]
[1758740528676,10.74289609,213.97,213.86,7.79]
[1758740528876,3.304375,213.96,213.86,7.79]
[1758740529082,3.304375,213.95,213.89,4.2054]
[1758740529282,3.304375,213.94,213.9,7.79]
[1758740529474,3.304375,213.93,213.9,7.79]
[1758740529670,3.304375,213.92,213.9,7.79]
[1758740529882,3.304375,213.91,213.9,7.79]
[1758740530278,3.304375,213.91,213.87,4.2058]
[1758740530584,7.38,213.95,213.88,7.79]
[1758740530778,3.30406875,213.94,213.88,7.79]
[1758740531082,10.68406875,213.93,213.88,7.79]
[1758740531379,3.30406875,213.92,213.87,4.2058]
[1758740531575,3.30406875,213.91,213.87,4.2058]
[1758740531776,3.36289609,213.97,213.86,7.79]
[1758740531777,10.6838605,213.9,213.86,7.79]
[1758740531982,7.38,213.9,213.85,4.2062]
[1758740532283,7.38,213.9,213.86,7.79]
[1758740532986,7.38,213.9,213.87,7.79]
[1758740533980,10.68363644,213.89,213.87,7.79]
[1758740534282,7.38,213.89,213.87,7.79]
[1758740534478,4.2049,213.93,213.87,7.79]
[1758740534680,3.30316474,213.92,213.87,7.79]
[1758740534877,7.38,213.9,213.87,7.79]
[1758740535079,3.30316474,213.89,213.87,7.79]
[1758740535280,7.38,213.9,213.87,7.79]
[1758740535484,3.30289629,213.89,213.87,7.79]
[1758740535681,7.38,213.91,213.8,13.84947965]
[1758740535892,7.38,213.89,213.83,4.2067]
[1758740536181,7.38,213.87,213.81,7.79]
[1758740536379,10.6834088,213.86,213.79,7.79]
[1758740536583,3.3034088,213.85,213.79,7.79]
[1758740536881,3.3034088,213.84,213.79,7.79]
[1758740537184,3.30154554,213.83,213.82,11.9968]
[1758740538184,7.38,213.88,213.84,4.2064]
[1758740538486,3.32046957,213.87,213.82,7.79]
[1758740538680,3.36289609,213.89,213.82,7.79]
[1758740538681,7.38,213.85,213.82,7.79]
[1758740538982,10.70046957,213.84,213.82,11.9968]
[1758740539174,3.32046957,213.83,213.82,4.2068]
[1758740539583,3.32046957,213.83,213.8,11.9973]
[1758740539784,10.70046957,213.83,213.8,11.9973]
[1758740539986,3.32046957,213.82,213.8,11.9973]
[1758740540279,7.38,213.83,213.8,11.9973]
[1758740540482,7.38,213.86,213.8,4.2073]
[1758740540688,7.38,213.82,213.8,4.2073]
[1758740544684,7.38,213.82,213.77,11.9977]
[1758740544886,7.38,213.82,213.78,7.97]
[1758740545281,7.38,213.82,213.77,4.2077]
[1758740545979,7.38,213.82,213.78,7.97]
[1758740546382,11.5163,213.86,213.78,7.97]
[1758740546578,3.3152353,213.85,213.75,12.1782]
[1758740546885,7.31,213.82,213.7,7.97]
[1758740547088,7.31,213.8,213.7,7.97]
[1758740547587,7.31,213.8,213.72,4.2088]
[1758740547787,7.31,213.82,213.72,12.1788]
[1758740547991,7.31,213.8,213.72,12.1788]
[1758740548187,3.36289609,213.83,213.72,12.1788]
[1758740548391,3.31435367,213.82,213.72,12.1788]
[1758740548592,2.15724676,213.78,213.72,12.1788]
[1758740549285,2.15724676,213.78,213.72,7.97]
[1758740549484,7.31,213.8,213.72,7.97]
[1758740550285,7.31,213.8,213.74,4.2084]
[1758740550491,7.31,213.8,213.74,12.1784]
[1758740552086,2.15724676,213.82,213.75,4.2081]
[1758740552292,10.6208787,213.81,213.74,7.97]
[1758740552493,7.31,213.81,213.74,7.97]
[1758740552792,7.31,213.81,213.77,12.1778]
[1758740553591,7.31,213.81,213.78,7.97]
[1758740556192,7.31,213.81,213.78,12.1776]
[1758740556487,9.46724676,213.84,213.79,7.97]
[1758740556796,3.31046238,213.83,213.78,12.1776]
[1758740557089,2.15724676,213.84,213.78,12.1776]
[1758740557288,7.31,213.82,213.79,7.97]
[1758740557689,2.15724676,213.84,213.78,4.2076]
[1758740557887,3.31015835,213.83,213.78,12.1776]
[1758740558189,7.31,213.82,213.79,7.97]
[1758740558386,106.03064797,213.9,213.76,65.4592]
[1758740558387,2.15724676,213.85,213.76,65.4592]
[1758740558586,3.31008609,213.84,213.78,7.97]
[1758740558787,7.31,213.86,213.78,7.97]
[1758740558992,3.31017948,213.85,213.78,7.97]
[1758740559193,3.31017948,213.84,213.78,7.97]
[1758740559393,7.31,213.86,213.78,7.97]
[1758740559580,3.31055543,213.85,213.81,4.2069]
[1758740559783,3.31055543,213.84,213.78,7.97]
[1758740559992,9.46724676,213.83,213.75,10.12724676]
[1758740561097,9.46724676,213.83,213.77,4.2078]
[1758740562094,9.46724676,213.83,213.78,4.2076]
[1758740562395,7.31,213.84,213.78,4.2076]
[1758740562588,3.31133073,213.83,213.78,4.2076]
[1758740562794,7.31,213.84,213.78,4.2076]
[1758740562993,3.31142381,213.83,213.78,4.2076]
[1758740563188,7.31,213.84,213.78,4.2076]
[1758740563394,7.31,213.82,213.78,12.1776]
[1758740563597,6.36364676,213.85,213.78,12.1776]
[1758740563792,7.31,213.83,213.79,7.97]
[1758740564098,7.31,213.85,213.79,7.97]
[1758740564292,3.31229195,213.84,213.8,4.2072]
[1758740564497,2.15724676,213.86,213.8,4.2072]
[1758740564793,7.31,213.84,213.8,4.2072]
[1758740565000,2.15724676,213.86,213.8,4.2072]
[1758740565190,3.31229259,213.85,213.8,4.2072]
[1758740565493,7.31,213.83,213.8,4.2072]
[1758740565698,2.15724676,213.86,213.8,4.2072]
[1758740565901,7.31,213.84,213.8,4.2072]
[1758740566096,7.31,213.82,213.8,4.2072]
[1758740566800,7.31,213.85,213.82,7.97]
[1758740567099,3.31310821,213.84,213.82,7.97]
[1758740567295,3.31310821,213.83,213.82,7.97]
[1758740567496,3.31310821,213.83,213.82,4.2068]
[1758740567696,3.31310821,213.85,213.82,4.2068]
[1758740567999,3.31310821,213.85,213.83,7.97]
[1758740569799,10.62310821,213.85,213.82,4.2068]
[1758740570004,3.31310821,213.84,213.82,4.2068]
[1758740572308,3.31310821,213.84,213.82,12.1768]
[1758740575806,3.31310821,213.84,213.78,2.15724676]
[1758740576004,3.31310821,213.83,213.79,7.21]
[1758740576201,3.31310821,213.82,213.79,7.21]
[1758740576406,7.64,213.86,213.84,7.21]
[1758740576608,7.64,213.86,213.8,2.15724676]
[1758740576609,10.96638014,213.85,213.8,9.36724676]
[1758740576909,3.32638014,213.84,213.78,2.15724676]
[1758740577210,3.32638014,213.83,213.78,2.15724676]
[1758740577412,3.32638014,213.82,213.78,2.15724676]
[1758740577708,7.64,213.85,213.82,11.4168]
[1758740577912,3.3279743,213.84,213.82,11.4168]
[1758740578111,3.3279743,213.83,213.82,11.4168]
[1758740582619,12.63240222,213.89,213.87,4.2058]
[1758740582917,108.18789473,213.9,213.81,65.4431]
[1758740582918,5.20240222,213.91,213.86,2.15724676]
[1758740583123,5.20240222,213.94,213.87,7.93]
[1758740583321,12.63240222,213.95,213.91,4.205]
[1758740583524,12.63240222,213.95,213.91,12.135]
[1758740584019,7.43,213.94,213.91,12.135]
[1758740585919,7.43,213.94,213.88,2.15724676]
[1758740585920,45.49964898,213.97,213.88,2.15724676]
[1758740586127,7.43,213.96,213.93,7.93]
[1758740586320,7.43,213.96,213.9,2.15724676]
[1758740586526,7.43,213.96,213.91,7.93]
[1758740586725,7.43,213.96,213.9,2.15724676]
[1758740587223,7.43,213.96,213.94,4.2044]
[1758740587621,115.67724676,213.99,213.94,12.1344]
[1758740587927,7.43,213.98,213.94,12.1344]
[1758740588321,113.52,213.99,213.94,12.1344]
[1758740588521,7.43,213.98,213.94,12.1344]
[1758740588924,113.52,213.99,213.94,12.1344]
[1758740589119,7.43,213.98,213.94,12.1344]
[1758740589328,113.52,213.99,213.94,12.1344]
[1758740589528,7.43,213.98,213.95,7.93]
[1758740589723,115.75674305,214.01,213.95,7.93]
[1758740589724,123.18674305,214.01,213.95,7.93]
[1758740590131,123.18674305,214.01,213.97,4.2038]
[1758740590424,115.75674305,214.01,213.98,7.93]
[1758740590729,123.18674305,214.01,213.98,7.93]
[1758740591630,7.43,214.01,213.98,7.93]
[1758740593526,7.43,214.05,213.98,10.08724676]
[1758740593732,7.43,214.05,213.99,7.93]
[1758740593926,7.43,214.05,214.0,6.36044676]
[1758740594626,7.43,214.05,214.01,7.93]
[1758740594832,10.72219103,214.04,214.01,7.93]
[1758740595033,7.43,214.04,214.01,7.93]
[1758740595722,7.43,214.03,213.98,6.36094676]
[1758740595925,7.43,214.03,213.99,7.93]
[1758740596127,7.43,214.03,213.98,6.36094676]
[1758740596330,7.43,214.03,213.99,7.93]
[1758740596731,7.43,214.03,213.98,6.36094676]
[1758740597030,7.43,214.03,213.99,7.93]
[1758740597230,7.43,214.03,213.98,6.36094676]
[1758740597432,7.43,214.03,214.0,7.93]
[1758740602236,7.43,214.03,214.01,7.93]
[1758740602841,7.43,214.03,214.0,4.2032]
[1758740603042,7.43,214.03,214.0,12.1332]
[1758740604233,7.21,214.05,214.01,7.76]
[1758740604440,7.21,214.05,214.02,7.76]
[1758740605243,122.84724676,214.07,214.03,7.76]
[1758740605644,7.21,214.06,214.03,7.76]
[1758740606042,115.63724676,214.07,214.03,7.76]
[1758740606539,9.36724676,214.09,214.03,11.9626]
[1758740606736,7.21,214.07,214.04,7.76]
[1758740607832,113.4,214.08,214.03,4.2026]
[1758740608040,7.21,214.06,214.03,4.2026]
[1758740608244,7.21,214.06,214.03,11.9626]
[1758740610146,7.21,214.06,214.03,7.76]
[1758740610446,7.21,214.07,214.03,7.76]
[1758740610640,113.4,214.08,214.03,7.76]
[1758740610846,7.21,214.06,214.03,7.76]
[1758740611247,7.21,214.06,214.01,4.2031]
[1758740611547,7.21,214.07,213.99,11.9635]
[1758740611752,3.27262857,214.06,213.99,11.9635]
[1758740612048,11.412,214.07,214.0,4.2033]
[1758740612243,3.27302443,214.06,214.0,4.2033]
[1758740612445,11.412,214.07,214.0,4.2033]
[1758740612645,3.27305004,214.06,214.0,4.2033]
[1758740612841,11.412,214.07,214.0,4.2033]
[1758740613043,3.27305004,214.06,214.0,4.2033]
[1758740613247,7.21,214.07,214.01,7.76]
[1758740613443,3.27359006,214.06,214.01,7.76]
[1758740613648,7.21,214.07,214.01,7.76]
[1758740613847,3.2735888,214.06,214.01,7.76]
[1758740614049,7.21,214.06,214.0,4.2033]
[1758740614250,7.21,214.06,214.0,11.9633]
[1758740614447,10.48425927,214.05,214.01,7.76]
[1758740614648,7.21,214.05,214.01,7.76]
[1758740614952,120.61,214.08,214.02,7.76]
[1758740615252,120.61,214.08,214.01,11.963]
[1758740615253,10.48405618,214.07,214.01,11.963]
[1758740615551,10.48405618,214.06,214.02,7.76]
[1758740615762,113.4,214.08,213.98,7.76]
[1758740616046,3.27473728,214.07,214.0,7.76]
[1758740616254,113.4,214.08,214.0,7.76]
[1758740616553,3.27548683,214.07,214.0,7.76]
[1758740616746,113.4,214.08,214.0,7.76]
[1758740616948,3.27532185,214.07,214.0,7.76]
[1758740617150,113.4,214.08,214.0,7.76]
[1758740617448,10.48622629,214.07,214.04,7.76]
[1758740617645,7.21,214.07,214.04,7.76]
[1758740617847,113.4,214.08,213.97,65.3942]
[1758740617848,113.4,214.08,214.01,4.2031]
[1758740618046,10.48622692,214.07,214.01,11.9631]
[1758740618244,7.21,214.05,214.02,7.76]
[1758740619343,7.21,214.05,214.02,11.9629]
[1758740619547,113.4,214.08,213.97,3.36119839]
[1758740619743,7.21,214.05,213.98,7.76]
[1758740619950,3.27870268,214.04,213.99,4.2035]
[1758740620256,7.21,214.05,213.99,11.9635]
[1758740620456,7.21,214.03,213.99,11.9635]
[1758740621261,7.21,214.03,214.0,4.2033]
[1758740621455,7.21,214.03,214.0,11.9633]
[1758740622750,7.21,214.03,214.01,4.203]
[1758740623052,120.61,214.08,214.01,7.76]
[1758740623251,3.28563568,214.07,214.01,7.76]
[1758740623454,7.21,214.05,214.02,11.9629]
[1758740623647,3.28563568,214.04,214.02,11.9629]
[1758740623844,3.28563568,214.03,214.02,11.9629]
[1758740624353,120.61,214.08,214.02,11.9629]
[1758740624354,7.21,214.08,214.02,11.9629]
[1758740624555,3.28735777,214.07,214.0,7.76]
[1758740624849,3.28735777,214.06,214.0,7.76]
[1758740625047,7.21,214.1,213.99,65.3896]
[1758740625048,3.28735777,214.05,213.99,65.3896]
[1758740625248,7.21,214.1,214.0,7.76]
[1758740625449,3.28737508,214.09,214.0,7.76]
[1758740625748,3.28737508,214.08,214.0,7.76]